Workbook

Sheet Instructions

Sheet Sample Output
D5: Period | E5: Sales, N(t) | F5: Logistic | G5: Gompertz | M5: Forecasting Information for Logistic Response | O5: Forecasting Information for Gompertz Response
D6: 1 | E6: 0.04089959151 | F6: =$N$29*((1-$N$26*EXP(-$N$27*1)/(1+$N$28*EXP(-$N$27*1)))) -> 0.09786449298 | G6: =$P$28*EXP(-$P$26*EXP(-$P$27*1)) -> 0.0002692326468
D7: 2 | E7: 0.08004807624 | F7: =$N$29*((1-$N$26*EXP(-$N$27*2)/(1+$N$28*EXP(-$N$27*2)))) -> 0.1001154195 | G7: =$P$28*EXP(-$P$26*EXP(-$P$27*2)) -> 0.0035638864 | M7: Total Observations | N7: 20 | O7: Total Observations | P7: 20
D8: 3 | E8: 0.09106811179 | F8: =$N$29*((1-$N$26*EXP(-$N$27*3)/(1+$N$28*EXP(-$N$27*3)))) -> 0.1056825888 | G8: =$P$28*EXP(-$P$26*EXP(-$P$27*3)) -> 0.02080890423 | M8: Holdout | N8: 0 | O8: Holdout | P8: 0
D9: 4 | E9: 0.1371893526 | F9: =$N$29*((1-$N$26*EXP(-$N$27*4)/(1+$N$28*EXP(-$N$27*4)))) -> 0.1192512844 | G9: =$P$28*EXP(-$P$26*EXP(-$P$27*4)) -> 0.06946149292 | M9: Forecast Horizon | N9: 10 | O9: Forecast Horizon | P9: 10
D10: 5 | E10: 0.2069057395 | F10: =$N$29*((1-$N$26*EXP(-$N$27*5)/(1+$N$28*EXP(-$N$27*5)))) -> 0.151172415 | G10: =$P$28*EXP(-$P$26*EXP(-$P$27*5)) -> 0.1582544062
D11: 6 | E11: 0.1777287816 | F11: =$N$29*((1-$N$26*EXP(-$N$27*6)/(1+$N$28*EXP(-$N$27*6)))) -> 0.2204038861 | G11: =$P$28*EXP(-$P$26*EXP(-$P$27*6)) -> 0.2777466208 | M11: In sample Error | O11: In sample Error
D12: 7 | E12: 0.2864304969 | F12: =$N$29*((1-$N$26*EXP(-$N$27*7)/(1+$N$28*EXP(-$N$27*7)))) -> 0.3472499158 | G12: =$P$28*EXP(-$P$26*EXP(-$P$27*7)) -> 0.4078787387 | M12: Mean of Absolute Deviation | N12: =sF_MAD($E$6:$E$25, $F$6:$F$25) -> 0.04283569991 | O12: Mean of Absolute Deviation | P12: =sF_MAD($E$6:$E$25, $G$6:$G$25) -> 0.0447703802
D13: 8 | E13: 0.56310898 | F13: =$N$29*((1-$N$26*EXP(-$N$27*8)/(1+$N$28*EXP(-$N$27*8)))) -> 0.5211260391 | G13: =$P$28*EXP(-$P$26*EXP(-$P$27*8)) -> 0.5303130156 | M13: Mean of Squared Residual | N13: =sF_MSE($E$6:$E$25, $F$6:$F$25) -> 0.00225103157 | O13: Mean of Squared Residual | P13: =sF_MSE($E$6:$E$25, $G$6:$G$25) -> 0.003488162259
D14: 9 | E14: 0.7619446509 | F14: =$N$29*((1-$N$26*EXP(-$N$27*9)/(1+$N$28*EXP(-$N$27*9)))) -> 0.6842144206 | G14: =$P$28*EXP(-$P$26*EXP(-$P$27*9)) -> 0.6344672415 | M14: Root Mean of Squared Residual | N14: =sF_RMSE($E$6:$E$25, $F$6:$F$25) -> 0.04744503736 | O14: Root Mean of Squared Residual | P14: =sF_RMSE($E$6:$E$25, $G$6:$G$25) -> 0.05906066592
D15: 10 | E15: 0.7260213254 | F15: =$N$29*((1-$N$26*EXP(-$N$27*10)/(1+$N$28*EXP(-$N$27*10)))) -> 0.7909767728 | G15: =$P$28*EXP(-$P$26*EXP(-$P$27*10)) -> 0.7171479483 | M15: Mean of Absolute Percent Error | N15: =sF_MAPE($E$6:$E$25, $F$6:$F$25) -> 0.1692011674 | O15: Mean of Absolute Percent Error | P15: =sF_MAPE($E$6:$E$25, $G$6:$G$25) -> 0.2455180697
D16: 11 | E16: 0.8130650013 | F16: =$N$29*((1-$N$26*EXP(-$N$27*11)/(1+$N$28*EXP(-$N$27*11)))) -> 0.8454364925 | G16: =$P$28*EXP(-$P$26*EXP(-$P$27*11)) -> 0.7797414662
D17: 12 | E17: 0.8044233977 | F17: =$N$29*((1-$N$26*EXP(-$N$27*12)/(1+$N$28*EXP(-$N$27*12)))) -> 0.8697085622 | G17: =$P$28*EXP(-$P$26*EXP(-$P$27*12)) -> 0.8256131808
D18: 13 | E18: 0.8236839206 | F18: =$N$29*((1-$N$26*EXP(-$N$27*13)/(1+$N$28*EXP(-$N$27*13)))) -> 0.8798716978 | G18: =$P$28*EXP(-$P$26*EXP(-$P$27*13)) -> 0.8584911738
D19: 14 | E19: 0.8820612153 | F19: =$N$29*((1-$N$26*EXP(-$N$27*14)/(1+$N$28*EXP(-$N$27*14)))) -> 0.8840154176 | G19: =$P$28*EXP(-$P$26*EXP(-$P$27*14)) -> 0.8817004753
D20: 15 | E20: 0.9009846012 | F20: =$N$29*((1-$N$26*EXP(-$N$27*15)/(1+$N$28*EXP(-$N$27*15)))) -> 0.8856865209 | G20: =$P$28*EXP(-$P$26*EXP(-$P$27*15)) -> 0.8979149976
D21: 16 | E21: 0.8418943112 | F21: =$N$29*((1-$N$26*EXP(-$N$27*16)/(1+$N$28*EXP(-$N$27*16)))) -> 0.8863574775 | G21: =$P$28*EXP(-$P$26*EXP(-$P$27*16)) -> 0.909162613
D22: 17 | E22: 0.9190255975 | F22: =$N$29*((1-$N$26*EXP(-$N$27*17)/(1+$N$28*EXP(-$N$27*17)))) -> 0.8866263912 | G22: =$P$28*EXP(-$P$26*EXP(-$P$27*17)) -> 0.9169270146
D23: 18 | E23: 0.9285383476 | F23: =$N$29*((1-$N$26*EXP(-$N$27*18)/(1+$N$28*EXP(-$N$27*18)))) -> 0.8867340927 | G23: =$P$28*EXP(-$P$26*EXP(-$P$27*18)) -> 0.9222691465
D24: 19 | E24: 0.9551422136 | F24: =$N$29*((1-$N$26*EXP(-$N$27*19)/(1+$N$28*EXP(-$N$27*19)))) -> 0.8867772155 | G24: =$P$28*EXP(-$P$26*EXP(-$P$27*19)) -> 0.9259363646
D25: 20 | E25: 0.9318988801 | F25: =$N$29*((1-$N$26*EXP(-$N$27*20)/(1+$N$28*EXP(-$N$27*20)))) -> 0.8867944795 | G25: =$P$28*EXP(-$P$26*EXP(-$P$27*20)) -> 0.9284499071 | M25: Paramters | O25: Paramters
D26: 21 | F26: =$N$29*((1-$N$26*EXP(-$N$27*21)/(1+$N$28*EXP(-$N$27*21)))) -> 0.8868013907 | G26: =$P$28*EXP(-$P$26*EXP(-$P$27*21)) -> 0.9301708887 | M26: b | N26: 1163.532839 | O26: a | P26: 11.9327463
D27: 22 | F27: =$N$29*((1-$N$26*EXP(-$N$27*22)/(1+$N$28*EXP(-$N$27*22)))) -> 0.8868041574 | G27: =$P$28*EXP(-$P$26*EXP(-$P$27*22)) -> 0.9313483653 | M27: c | N27: 0.9155038546 | O27: b | P27: 0.3810795385
D28: 23 | F28: =$N$29*((1-$N$26*EXP(-$N$27*23)/(1+$N$28*EXP(-$N$27*23)))) -> 0.886805265 | G28: =$P$28*EXP(-$P$26*EXP(-$P$27*23)) -> 0.9321535841 | M28: d | N28: 1305.365596 | O28: M | P28: 0.933891847
D29: 24 | F29: =$N$29*((1-$N$26*EXP(-$N$27*24)/(1+$N$28*EXP(-$N$27*24)))) -> 0.8868057083 | G29: =$P$28*EXP(-$P$26*EXP(-$P$27*24)) -> 0.9327040482 | M29: M | N29: 0.8868060043
D30: 25 | F30: =$N$29*((1-$N$26*EXP(-$N$27*25)/(1+$N$28*EXP(-$N$27*25)))) -> 0.8868058858 | G30: =$P$28*EXP(-$P$26*EXP(-$P$27*25)) -> 0.9330802701
D31: 26 | F31: =$N$29*((1-$N$26*EXP(-$N$27*26)/(1+$N$28*EXP(-$N$27*26)))) -> 0.8868059569 | G31: =$P$28*EXP(-$P$26*EXP(-$P$27*26)) -> 0.9333373633
D32: 27 | F32: =$N$29*((1-$N$26*EXP(-$N$27*27)/(1+$N$28*EXP(-$N$27*27)))) -> 0.8868059853 | G32: =$P$28*EXP(-$P$26*EXP(-$P$27*27)) -> 0.9335130305
D33: 28 | F33: =$N$29*((1-$N$26*EXP(-$N$27*28)/(1+$N$28*EXP(-$N$27*28)))) -> 0.8868059967 | G33: =$P$28*EXP(-$P$26*EXP(-$P$27*28)) -> 0.9336330519
D34: 29 | F34: =$N$29*((1-$N$26*EXP(-$N$27*29)/(1+$N$28*EXP(-$N$27*29)))) -> 0.8868060013 | G34: =$P$28*EXP(-$P$26*EXP(-$P$27*29)) -> 0.9337150502
D35: 30 | F35: =$N$29*((1-$N$26*EXP(-$N$27*30)/(1+$N$28*EXP(-$N$27*30)))) -> 0.8868060031 | G35: =$P$28*EXP(-$P$26*EXP(-$P$27*30)) -> 0.9337710693

Sheet Trend Curves Model Example
B11: Period, t | C11: Sales, N(t)
B12: 1 | C12: 0.04089959151
B13: 2 | C13: 0.08004807624
B14: 3 | C14: 0.09106811179
B15: 4 | C15: 0.1371893526
B16: 5 | C16: 0.2069057395
B17: 6 | C17: 0.1777287816
B18: 7 | C18: 0.2864304969
B19: 8 | C19: 0.56310898
B20: 9 | C20: 0.7619446509
B21: 10 | C21: 0.7260213254
B22: 11 | C22: 0.8130650013
B23: 12 | C23: 0.8044233977
B24: 13 | C24: 0.8236839206
B25: 14 | C25: 0.8820612153
B26: 15 | C26: 0.9009846012
B27: 16 | C27: 0.8418943112
B28: 17 | C28: 0.9190255975
B29: 18 | C29: 0.9285383476
B30: 19 | C30: 0.9551422136
B31: 20 | C31: 0.9318988801
